bitfinex-derivatives/quotes_BTCF0:USTF0_20250422
["timestamp","ask_amount","ask_price","bid_price","bid_amount"]
[1745342778734,0.197,90929.0,90928.0,0.1299199]
[1745342779131,0.698,90929.0,90928.0,0.1299199]
[1745342779525,0.698,90929.0,90928.0,0.02]
[1745342779929,0.698,90929.0,90926.0,0.1099223]
[1745342779930,0.698,90929.0,90924.0,0.007]
[1745342780251,0.1099318,90919.0,90914.0,0.00016496]
[1745342780424,0.3608,90915.0,90914.0,0.00016496]
[1745342780629,0.3608,90915.0,90914.0,0.11010176]
[1745342780833,0.2932,90918.0,90917.0,0.1099332]
[1745342781036,0.654,90918.0,90914.0,0.00016496]
[1745342781228,0.846,90918.0,90914.0,0.00016496]
[1745342781434,0.4852,90918.0,90914.0,0.00016496]
[1745342781634,0.4852,90918.0,90917.0,0.1099332]
[1745342781848,0.4852,90918.0,90917.0,0.1499332]
[1745342782026,0.3393,90918.0,90917.0,0.1499332]
[1745342782225,0.005,90929.0,90925.0,0.1099235]
[1745342782226,0.1461,90926.0,90925.0,0.1099235]
[1745342782426,0.1461,90926.0,90925.0,0.1299235]
[1745342782740,0.005,90929.0,90928.0,0.1089199]
[1745342782940,0.3608,90943.0,90942.0,0.109903]
[1745342783235,0.5528,90943.0,90942.0,0.01]
[1745342783437,0.5528,90943.0,90942.0,0.118903]
[1745342783632,0.5528,90943.0,90942.0,0.009]
[1745342783833,0.5528,90943.0,90942.0,0.118903]
[1745342784133,0.5578,90943.0,90942.0,0.009]
[1745342784433,0.697,90943.0,90942.0,0.009]
[1745342784637,1.16776,90943.0,90933.0,0.00016496]
[1745342784833,0.1461,90942.0,90933.0,0.02016496]
[1745342785229,0.3381,90942.0,90941.0,0.1099042]
[1745342785629,0.3381,90942.0,90939.0,0.1099058]
[1745342785831,0.1415,90941.0,90939.0,0.01]
[1745342786233,0.1451,90940.0,90939.0,0.01]
[1745342786430,0.0549545,90937.0,90910.0,0.21012172]
[1745342786632,0.255064,90940.0,90914.0,0.1468]
[1745342786633,0.0549577,90932.0,90914.0,0.1468]
[1745342786939,0.1099356,90915.0,90914.0,0.03]
[1745342787128,0.3608,90917.0,90897.0,0.1468]
[1745342787328,0.3608,90917.0,90907.0,0.01495011]
[1745342787329,0.3608,90908.0,90907.0,0.01495011]
[1745342787732,0.09284,90910.0,90909.0,0.1099429]
[1745342788135,0.09284,90910.0,90907.0,0.05084541]
[1745342788136,0.28484,90910.0,90904.0,0.1099487]
[1745342788337,0.3608,90905.0,90904.0,0.01]
[1745342789348,0.5528,90905.0,90904.0,0.019]
[1745342789537,0.5528,90905.0,90899.0,0.0549775]
[1745342789731,0.2845,90904.0,90900.0,0.0549768]
[1745342789934,0.6453,90904.0,90900.0,0.01]
[1745342790133,0.193,90905.0,90904.0,0.1099489]
[1745342790437,0.001,90905.0,90904.0,0.1099489]
[1745342790632,0.001,90905.0,90904.0,0.1199489]
[1745342790831,0.09284,90924.0,90913.0,0.109938]
[1745342791034,0.1369,90916.0,90901.0,0.2749]
[1745342791238,0.3608,90902.0,90901.0,0.4048525]
[1745342791639,0.3608,90902.0,90901.0,0.2949]
[1745342791846,0.3608,90902.0,90901.0,0.4048525]
[1745342792239,1.0528,90902.0,90901.0,0.4048525]
[1745342792437,0.692,90902.0,90901.0,0.4048525]
[1745342793038,0.693,90902.0,90901.0,0.4048525]
[1745342793342,0.502,90902.0,90901.0,0.4048525]
[1745342793833,0.501,90902.0,90901.0,0.4048525]
[1745342794037,0.502,90902.0,90901.0,0.4048525]
[1745342794443,0.501,90902.0,90901.0,0.4048525]
[1745342794642,0.502,90902.0,90901.0,0.4068525]
[1745342794847,0.502,90902.0,90901.0,0.2969]
[1745342795041,0.501,90902.0,90901.0,0.4048525]
[1745342795233,0.694,90902.0,90901.0,0.3804529]
[1745342795641,0.693,90902.0,90901.0,0.3784529]
[1745342795837,0.694,90902.0,90901.0,0.3804529]
[1745342796343,0.502,90902.0,90901.0,0.3804529]
[1745342797042,0.501,90902.0,90901.0,0.3804529]
[1745342797236,0.693,90902.0,90901.0,0.2715004]
[1745342797435,0.694,90902.0,90901.0,0.2715004]
[1745342797639,0.694,90902.0,90901.0,0.3814529]
[1745342798246,0.694,90902.0,90901.0,0.36770189]
[1745342799135,0.693,90902.0,90901.0,0.36470189]
[1745342799339,0.693,90902.0,90901.0,0.36770189]
[1745342799542,0.694,90902.0,90901.0,0.36770189]
[1745342799737,0.69417604,90902.0,90901.0,0.36770189]
[1745342799938,1.05497604,90902.0,90901.0,0.36770189]
[1745342800145,1.05497604,90902.0,90898.0,0.00016496]
[1745342800348,0.2905,90901.0,90898.0,0.01016496]
[1745342800741,0.1509,90901.0,90900.0,0.1099537]
[1745342800940,0.1509,90901.0,90900.0,0.1199537]
[1745342801142,0.4825,90901.0,90900.0,0.1199537]
[1745342801345,0.3429,90901.0,90900.0,0.1199537]
[1745342801545,0.192,90901.0,90900.0,0.1199537]
[1745342801845,0.194,90901.0,90900.0,0.1199537]
[1745342802245,0.694,90901.0,90900.0,0.1199537]
[1745342802445,0.693,90901.0,90900.0,0.1199537]
[1745342802846,0.68749968,90901.0,90900.0,0.4799657]
[1745342803147,0.34200533,90934.0,90900.0,0.562892]
[1745342803344,0.1503,90949.0,90939.0,0.054953]
[1745342803542,0.15857853,90949.0,90944.0,0.3608]
[1745342803742,0.1503,90949.0,90945.0,0.1485]
[1745342803947,0.1503,90949.0,90945.0,0.1585]
[1745342804244,0.3423,90949.0,90945.0,0.1585]
[1745342804749,0.192,90949.0,90945.0,0.1585]
[1745342804945,0.192,90949.0,90948.0,0.1098957]
[1745342805251,0.3608,90953.0,90952.0,0.1098909]
[1745342805451,0.00016496,90956.0,90955.0,0.1098873]
[1745342805651,0.005,90959.0,90958.0,0.1098836]
[1745342805954,0.005,90959.0,90958.0,0.015]
[1745342806247,0.697,90959.0,90958.0,0.015]
[1745342806751,0.701,90959.0,90958.0,0.016]
[1745342807150,0.8423,90959.0,90958.0,0.016]
[1745342807739,0.8423,90959.0,90958.0,0.013]
[1745342808142,0.0549426,90957.0,90948.0,0.001]
[1745342808346,0.0549448,90953.0,90949.0,0.1471]
[1745342808547,0.3608,90950.0,90949.0,0.1471]
[1745342808747,0.2843,90952.0,90951.0,0.1098921]
[1745342808950,0.199,90959.0,90958.0,0.1098836]
[1745342808951,0.197,90959.0,90958.0,0.1098836]
[1745342809150,0.202,90959.0,90958.0,0.1108836]
[1745342809846,0.109884,90958.0,90951.0,0.4706915]
[1745342810045,0.2932,90958.0,90954.0,0.0549441]
[1745342810246,0.2932,90958.0,90955.0,0.147]
[1745342810443,0.109889,90954.0,90951.0,0.002]
[1745342810753,0.3608,90952.0,90951.0,0.002]
[1745342811155,0.6945,90952.0,90951.0,0.002]
[1745342811350,0.3337,90952.0,90948.0,0.1098948]
[1745342811548,0.3608,90949.0,90948.0,0.1098945]
[1745342812157,0.5528,90949.0,90948.0,0.1098945]
[1745342812354,0.7043,90949.0,90948.0,0.1098945]
[1745342812950,0.7043,90949.0,90948.0,0.2605945]
[1745342813148,1.2053,90949.0,90948.0,0.2605945]
[1745342813351,1.2053,90949.0,90948.0,0.1507]
[1745342813652,0.8445,90949.0,90948.0,0.1507]
[1745342813852,0.8445,90949.0,90948.0,0.2625957]
[1745342814052,1.2053,90949.0,90948.0,0.1527]
[1745342814248,1.2063,90949.0,90948.0,0.1537]
[1745342814450,1.2053,90949.0,90948.0,0.1537]
[1745342814750,1.2053,90949.0,90948.0,0.001]
[1745342814751,1.42414651,90949.0,90948.0,0.001]
[1745342814950,1.57624651,90949.0,90948.0,0.004]
[1745342815149,1.57624651,90949.0,90948.0,0.00177287]
[1745342815356,1.46735201,90949.0,90948.0,0.00177287]
[1745342815555,1.57824691,90949.0,90948.0,0.001]
[1745342815858,1.2063,90949.0,90948.0,0.001]
[1745342816153,1.2093,90949.0,90948.0,0.2982]
[1745342816353,1.3191945,90949.0,90948.0,0.2982]
[1745342816557,1.3191945,90949.0,90948.0,0.1551]
[1745342816758,1.4584945,90949.0,90948.0,0.1551]
[1745342816947,1.3486,90949.0,90948.0,0.1551]
[1745342817254,1.4594945,90949.0,90948.0,0.1541]
[1745342817458,1.4594945,90949.0,90948.0,0.001]
[1745342818252,1.3456,90949.0,90948.0,0.001]
[1745342818446,1.3446,90949.0,90948.0,0.003]
[1745342818858,1.3446,90949.0,90946.0,0.09915211]
[1745342819159,1.3446,90949.0,90941.0,0.1099042]
[1745342819367,0.1099002,90945.0,90940.0,0.2630049]
[1745342819661,0.3608,90941.0,90940.0,0.3179579]
[1745342820254,0.5528,90941.0,90940.0,0.3179579]
[1745342820855,0.192,90941.0,90940.0,0.3179579]
[1745342821259,0.192,90941.0,90940.0,0.6787579]
[1745342821660,0.693,90941.0,90940.0,0.6817579]
[1745342822057,0.693,90941.0,90940.0,0.6827579]
[1745342822763,0.693,90941.0,90940.0,0.6817579]
[1745342822961,0.694,90941.0,90940.0,0.6857579]
[1745342823152,0.48350185,90941.0,90940.0,1.02133382]
[1745342823358,0.48350185,90941.0,90940.0,0.77133382]
[1745342823563,0.48350185,90941.0,90940.0,0.66136983]
[1745342823762,0.48350185,90941.0,90940.0,0.30056983]
[1745342823952,0.48350185,90941.0,90940.0,0.66136983]
[1745342824154,0.194,90941.0,90940.0,0.66136983]
[1745342824662,0.193,90941.0,90940.0,0.65636983]
[1745342824961,0.194,90941.0,90940.0,0.66136983]
[1745342825759,0.01100001,90941.0,90940.0,0.66136983]
[1745342826161,0.51100001,90941.0,90940.0,0.66136983]
[1745342826962,0.50550269,90941.0,90940.0,0.66136983]
[1745342827164,0.502,90941.0,90940.0,0.77133382]
[1745342829572,0.502,90941.0,90940.0,0.84133382]
[1745342829778,0.44800919,90941.0,90940.0,0.84133382]
[1745342830773,0.44251185,90941.0,90940.0,0.84133382]
[1745342830967,0.14402505,90941.0,90940.0,1.09133382]
[1745342831167,0.07199561,90941.0,90940.0,1.19133382]
[1745342831467,0.00016496,90950.0,90949.0,0.1098945]
[1745342831673,0.00829878,90973.0,90958.0,0.1098836]
[1745342831969,0.00829878,90973.0,90958.0,0.5306836]
[1745342832169,0.197,90959.0,90958.0,0.5306836]
[1745342832374,0.16047266,90959.0,90958.0,0.6406236]
[1745342832562,0.16047266,90959.0,90958.0,0.7406236]
[1745342832767,0.15497532,90959.0,90958.0,0.7406236]
[1745342833076,0.15497532,90959.0,90958.0,0.8909236]
[1745342833469,0.15497532,90959.0,90958.0,0.7909236]
[1745342834072,0.15697532,90959.0,90958.0,0.7989236]
[1745342834572,0.15697532,90959.0,90958.0,0.8278836]
[1745342835167,0.002,90959.0,90958.0,0.8278836]
[1745342835364,0.502,90959.0,90958.0,0.8278836]
[1745342835767,0.502,90959.0,90958.0,0.9378236]
[1745342836668,0.002,90959.0,90958.0,0.9378236]
[1745342837164,0.194,90959.0,90958.0,0.9378236]
[1745342838177,0.002,90959.0,90958.0,0.9378236]
[1745342840178,0.194,90959.0,90958.0,0.4670836]
[1745342840567,0.194,90959.0,90958.0,0.04161558]
[1745342840767,0.194,90959.0,90958.0,0.15149918]
[1745342841270,0.55394,90959.0,90930.0,0.30289912]
[1745342841472,0.55394,90959.0,90940.0,0.20993912]
[1745342841473,0.3608,90951.0,90940.0,0.20993912]
[1745342841772,0.2788,90950.0,90940.0,0.25993912]
[1745342841970,0.2788,90950.0,90946.0,0.1098973]
[1745342842171,0.7208,90950.0,90938.0,0.14596496]
[1745342842381,0.3608,90941.0,90938.0,0.02]
[1745342842677,0.4183,90940.0,90938.0,0.00643391]
[1745342842971,0.9183,90940.0,90939.0,0.1099066]
[1745342843171,1.1103,90940.0,90939.0,0.11634051]
[1745342843372,0.9707,90940.0,90939.0,0.40974051]
[1745342843872,0.9727,90940.0,90939.0,0.40974051]
[1745342844371,0.9737,90940.0,90939.0,0.40974051]
[1745342844572,0.8345,90940.0,90939.0,0.40974051]
[1745342845270,0.8325,90940.0,90939.0,0.40974051]
[1745342845473,0.693,90940.0,90939.0,0.8805045]
[1745342845662,0.45376,90983.0,90980.0,0.1098562]
[1745342845863,0.6573,90981.0,90980.0,0.07028152]
[1745342846267,0.6573,90981.0,90971.0,0.4157338]
[1745342846268,0.95921201,90981.0,90977.0,0.1447]
[1745342846469,0.8493,90981.0,90977.0,0.01]
[1745342846668,0.8493,90981.0,90978.0,0.1098591]
[1745342846869,0.8493,90981.0,90979.0,0.1098581]
[1745342847078,0.5,90980.0,90979.0,0.1198578]
[1745342847472,0.5,90980.0,90979.0,0.1198583]
[1745342847473,0.7996,90980.0,90979.0,0.1198583]
[1745342847664,0.7996,90980.0,90979.0,0.01]
[1745342848169,0.9916,90980.0,90970.0,0.00016487]
[1745342848368,0.3608,90971.0,90970.0,0.18496847]
[1745342849175,0.5528,90971.0,90970.0,0.18496847]
[1745342849381,0.5528,90971.0,90970.0,0.18596847]
[1745342849782,1.0528,90971.0,90970.0,0.18496847]
[1745342849980,1.0568,90971.0,90970.0,0.18496847]
[1745342850482,1.0598,90971.0,90970.0,0.18596847]
[1745342851382,0.695,90971.0,90970.0,0.18596847]
[1745342851568,0.697,90971.0,90970.0,0.19958647]
[1745342851975,0.695,90971.0,90970.0,0.041]
[1745342852280,0.197,90971.0,90970.0,0.041]
[1745342852672,0.197,90971.0,90970.0,0.02176159]
[1745342853186,0.697,90971.0,90970.0,0.02176159]
[1745342853479,0.697,90971.0,90970.0,0.001]
[1745342853684,0.697,90971.0,90970.0,0.02]
[1745342854571,0.697,90971.0,90970.0,0.1298691]
[1745342856079,1.0578,90971.0,90970.0,0.02]
[1745342858582,1.0578,90971.0,90970.0,0.1298691]
[1745342858986,1.0578,90971.0,90904.0,0.06259476]
[1745342858987,1.417724,90971.0,90956.0,0.03]
[1745342859184,1.417724,90971.0,90943.0,0.09088]
[1745342859185,0.2882,90970.0,90943.0,0.09088]
[1745342859393,0.3608,90963.0,90956.0,0.0549427]
[1745342859591,0.4452,90962.0,90957.0,0.0549424]
[1745342859780,0.3608,90961.0,90959.0,0.1098818]
[1745342859981,0.3608,90961.0,90960.0,0.1098812]
[1745342860177,0.5528,90961.0,90960.0,0.1198812]
[1745342860784,0.5528,90961.0,90960.0,0.10064137]
[1745342861089,0.693,90961.0,90960.0,0.46144137]
[1745342861590,0.67194687,90961.0,90960.0,0.46144137]
[1745342862089,0.67194687,90961.0,90960.0,0.1208812]
[1745342862392,0.67194687,90961.0,90960.0,0.03]
[1745342862786,0.67194687,90961.0,90960.0,0.1398812]
[1745342863091,0.67094687,90961.0,90960.0,0.1398812]
[1745342863289,0.67394687,90961.0,90960.0,0.1408812]
[1745342863897,0.67394687,90961.0,90960.0,0.1418812]
[1745342864387,0.67394687,90961.0,90960.0,0.1428812]
[1745342864590,0.67494687,90961.0,90960.0,0.033]
[1745342864784,0.67494687,90961.0,90960.0,0.1428812]
[1745342864991,0.67394687,90961.0,90960.0,0.1418812]
[1745342865392,0.67194687,90961.0,90960.0,0.1408812]
[1745342865693,0.67294687,90961.0,90960.0,0.1418812]
[1745342866390,1.03374687,90961.0,90960.0,0.032]
[1745342866895,1.14368287,90961.0,90960.0,0.032]
[1745342867390,1.14368287,90961.0,90960.0,0.1418812]
[1745342867586,1.14368287,90961.0,90960.0,0.11549404]
[1745342867781,1.03374687,90961.0,90960.0,0.11549404]
[1745342868989,1.03374687,90961.0,90960.0,0.41449404]
[1745342869192,1.03374687,90961.0,90960.0,0.27159404]
[1745342869687,1.03374687,90961.0,90960.0,0.11549404]
[1745342872392,1.03374687,90961.0,90960.0,0.41055118]
[1745342873098,1.03474687,90961.0,90960.0,0.41155118]
[1745342873296,1.03674687,90961.0,90960.0,0.41155118]
[1745342873796,1.03474687,90961.0,90960.0,0.41255118]
[1745342874494,1.03574687,90961.0,90960.0,0.41155118]
[1745342874693,1.03374687,90961.0,90960.0,0.41055118]
[1745342874888,1.17934687,90961.0,90960.0,0.41055118]
[1745342875285,1.03274687,90961.0,90960.0,0.41055118]
[1745342875491,0.67394687,90961.0,90960.0,0.38516544]
[1745342875890,0.58081007,90961.0,90960.0,0.49510143]
[1745342876195,0.37583336,90961.0,90960.0,0.74510143]
[1745342876397,0.002,90961.0,90960.0,0.74510143]
[1745342876591,0.001,90961.0,90960.0,0.74510143]
[1745342876992,0.001,90961.0,90960.0,0.49510143]
[1745342877193,0.002,90961.0,90960.0,0.49510143]
[1745342877699,0.002,90961.0,90960.0,0.74510143]
[1745342878102,0.001,90961.0,90960.0,0.74510143]
[1745342878287,0.002,90961.0,90960.0,0.49510143]
[1745342879403,0.002,90961.0,90960.0,0.1559]
[1745342879593,0.002,90961.0,90960.0,0.2657812]
[1745342880098,0.3464,90961.0,90960.0,0.2657812]
[1745342880295,0.8464,90961.0,90960.0,0.2657812]
[1745342880497,1.2072,90961.0,90960.0,0.1559]
[1745342880802,1.2072,90961.0,90960.0,0.2657812]
[1745342881002,1.2072,90961.0,90960.0,0.4113812]
[1745342882502,0.694,90961.0,90960.0,0.39763955]
[1745342883396,0.694,90961.0,90960.0,0.26137403]
[1745342883600,0.694,90961.0,90960.0,0.1566]
[1745342883900,0.9893,90961.0,90957.0,0.1098845]
[1745342884101,0.9893,90961.0,90958.0,0.1098834]
[1745342884399,0.9893,90961.0,90959.0,0.1098821]
[1745342884589,0.8381,90961.0,90960.0,0.1098812]
[1745342884790,0.8381,90961.0,90960.0,0.2741812]
[1745342884990,0.694,90961.0,90960.0,0.2741812]
[1745342885203,0.501,90961.0,90960.0,0.2741812]
[1745342885391,0.502,90961.0,90960.0,0.2741812]
[1745342885799,0.002,90961.0,90960.0,0.2741812]
[1745342886909,0.3628,90961.0,90960.0,0.2741812]
[1745342887099,0.502,90961.0,90960.0,0.2741812]
[1745342887402,1.0548,90961.0,90960.0,0.2741812]
[1745342887703,1.0548,90961.0,90960.0,0.01]
[1745342888392,1.0548,90961.0,90960.0,0.1198812]
[1745342888593,1.0548,90961.0,90960.0,0.01]
[1745342889195,1.0548,90961.0,90960.0,0.1198812]
[1745342891398,1.0548,90961.0,90960.0,0.1098812]
[1745342891699,1.0548,90961.0,90960.0,0.11349388]
[1745342892399,1.0548,90961.0,90960.0,0.09975053]
[1745342893197,0.694,90961.0,90960.0,0.09975053]
[1745342894202,0.694,90961.0,90960.0,0.4906812]
[1745342894396,0.694,90961.0,90960.0,0.85061719]
[1745342894397,0.63643964,90961.0,90960.0,0.85061719]
[1745342894695,0.25724816,90961.0,90960.0,0.95061719]
[1745342894902,0.04116594,90961.0,90960.0,0.95061719]
[1745342895103,0.1406791,91000.0,90960.0,1.22881599]
[1745342895300,0.1524188,90999.0,90992.0,0.0549207]
[1745342895499,0.1524188,90999.0,90993.0,0.2998]
[1745342895702,0.3608,90996.0,90993.0,0.3198]
[1745342895902,0.1531,90998.0,90993.0,0.3198]
[1745342896102,0.192,90996.0,90993.0,0.3198]
[1745342896301,0.192,90996.0,90993.0,0.35943438]
[1745342896500,0.192,90996.0,90995.0,0.1098389]
[1745342896707,0.192,90996.0,90995.0,0.1298389]
[1745342897101,0.692,90996.0,90995.0,0.1298389]
[1745342898200,0.696,90996.0,90995.0,0.1308389]
[1745342898603,0.7,90996.0,90995.0,0.1318389]
[1745342899508,0.7,90996.0,90995.0,0.10546571]
[1745342900102,0.3698971,90996.0,90995.0,0.46536171]
[1745342900313,0.3422354,90996.0,90995.0,0.46536171]
[1745342900512,0.3422354,90996.0,90995.0,0.76496171]
[1745342901101,0.3392354,90996.0,90995.0,0.165]
[1745342901303,0.5312354,90996.0,90993.0,0.03963438]
[1745342901611,0.2956,90995.0,90987.0,0.1098481]
[1745342901812,0.3608,90991.0,90986.0,0.03418254]
[1745342902001,0.2956,90990.0,90989.0,0.1098462]
[1745342902208,0.0549237,90989.0,90968.0,0.00164899]
[1745342902507,0.3608,90977.0,90976.0,0.1098619]
[1745342903105,1.0528,90977.0,90976.0,0.1098619]
[1745342903809,1.0538,90977.0,90976.0,0.2541619]
[1745342904007,1.0538,90977.0,76892.0,0.02]
[1745342904308,0.2933,90976.0,90969.0,0.1992351]
[1745342904507,0.2933,90976.0,90969.0,0.1443]
[1745342904807,0.2933,90976.0,90975.0,0.1098631]
[1745342905013,0.2933,90976.0,90975.0,0.09612289]
[1745342905199,0.3438,90976.0,90975.0,0.09612289]
[1745342905399,0.3438,90976.0,90975.0,0.45692289]
[1745342905606,0.3458,90976.0,90975.0,0.45692289]
[1745342905802,0.8458,90976.0,90975.0,0.60172289]
[1745342906105,0.5,90976.0,90975.0,0.60172289]
[1745342906303,0.501,90976.0,90975.0,0.60172289]
[1745342906910,0.501,90976.0,90975.0,0.60272289]
[1745342907106,0.001,90976.0,90975.0,0.60272289]
[1745342907306,0.001,90976.0,90975.0,0.1118631]
[1745342907513,0.001,90976.0,90974.0,0.1443]
[1745342907813,0.6599,90975.0,90973.0,0.109865]
[1745342908016,0.1508,90975.0,90974.0,0.1098643]
[1745342908218,0.6508,90975.0,90974.0,0.1098643]
[1745342908812,0.6508,90975.0,90974.0,0.2532643]
[1745342909117,0.8428,90975.0,90974.0,0.2532643]
[1745342909305,0.8438,90975.0,90974.0,0.2552643]
[1745342910015,0.8448,90975.0,90974.0,0.2572643]
[1745342910416,0.8448,90975.0,90974.0,0.2562643]
[1745342911009,0.8448,90975.0,90974.0,0.1464]
[1745342911218,0.8448,90975.0,90964.0,0.3608]
[1745342911219,0.0549344,90971.0,90964.0,0.3608]
[1745342911513,0.1559,90970.0,90957.0,0.1536]
[1745342911713,0.3608,90966.0,90952.0,0.0549452]
[1745342911905,0.3036,90965.0,90957.0,0.0549421]
[1745342912220,0.4956,90965.0,90961.0,0.1098798]
[1745342912521,0.8564,90965.0,90959.0,0.0549412]
[1745342912820,0.5,90963.0,90961.0,0.1098795]
[1745342913020,0.309,90962.0,90961.0,0.1098795]
[1745342913721,0.1559,90962.0,90961.0,0.1098795]
[1745342914015,0.692,90963.0,90962.0,0.1098788]
[1745342914211,0.192,90963.0,90962.0,0.1098788]
[1745342915123,0.0081953,90973.0,90971.0,0.09612761]
[1745342915315,0.15826487,90972.0,90971.0,0.09612761]
[1745342915515,0.00016487,90972.0,90971.0,0.06974568]
[1745342915718,0.00016487,90972.0,90971.0,0.23524568]
[1745342916519,0.3658,90989.0,90980.0,0.1098571]
[1745342916720,0.005,90989.0,90980.0,0.4706571]
[1745342916909,0.005,90989.0,90980.0,0.4656571]
[1745342917115,0.1526,90988.0,90987.0,0.1098486]
[1745342917823,0.1526,90988.0,90987.0,0.4320486]
[1745342918319,0.8446,90988.0,90987.0,0.3222]
[1745342918521,0.8446,90988.0,90987.0,0.3192]
[1745342918823,1.0085,90988.0,90987.0,0.4290486]
[1745342919024,1.0125,90988.0,90987.0,0.4300486]
[1745342919226,1.0175,90988.0,90987.0,0.4310486]
[1745342919424,0.8536,90988.0,90987.0,0.4310486]
[1745342919725,0.7,90988.0,90987.0,0.4710486]
[1745342920028,0.698,90988.0,90987.0,0.4710486]
[1745342920225,0.506,90988.0,90987.0,0.4710486]
[1745342921221,0.698,90988.0,90987.0,0.4710486]
[1745342921618,0.8493,90988.0,90987.0,0.4690486]
[1745342921819,0.8533,90988.0,90987.0,0.4700486]
[1745342922225,0.8533,90988.0,90987.0,0.3133486]
[1745342922420,1.0078,90988.0,90987.0,0.3133486]
[1745342922613,1.0098,90988.0,90987.0,0.3133486]
[1745342922819,1.0098,90988.0,90987.0,0.3123486]
[1745342923126,0.8533,90988.0,90987.0,0.3123486]
[1745342923322,0.8493,90988.0,90987.0,0.4675486]
[1745342923525,0.8503,90988.0,90987.0,0.4675486]
[1745342924326,1.0068,90988.0,90987.0,0.4675486]
[1745342924522,1.0068,90988.0,90987.0,0.3123486]
[1745342924726,0.8503,90988.0,90987.0,0.3123486]
[1745342925227,0.8493,90988.0,90987.0,0.6741486]
[1745342925823,0.8493,90988.0,90987.0,0.3133486]
[1745342926027,0.8493,90988.0,90987.0,0.3123486]
[1745342926226,0.8493,90988.0,90987.0,0.3143486]
[1745342927524,0.692,90988.0,90987.0,0.3143486]
[1745342927824,0.693,90988.0,90987.0,0.3163486]
[1745342928016,0.693,90988.0,90987.0,0.28997434]
[1745342928222,0.693,90988.0,90987.0,0.27623775]
[1745342928523,0.693,90988.0,90987.0,0.27423775]
[1745342928724,0.693,90988.0,90987.0,0.63603775]
[1745342929022,0.694,90988.0,90987.0,0.63903775]
[1745342929225,0.194,90988.0,90987.0,0.63903775]
[1745342929421,0.194,90988.0,90987.0,0.64003775]
[1745342929821,0.17387823,90988.0,90987.0,0.64003775]
[1745342930221,0.01267632,90988.0,90987.0,0.74994175]
[1745342930630,0.01267632,90988.0,90987.0,0.64003775]
[1745342931427,0.01167632,90988.0,90987.0,0.63703775]
[1745342931630,0.01267632,90988.0,90987.0,0.64103775]
[1745342931827,0.00892632,90988.0,90987.0,0.75094175]
[1745342932017,0.00892632,90988.0,90987.0,0.91664175]
[1745342932323,1e-08,90989.0,90988.0,0.1098474]
[1745342932623,1e-08,90989.0,90988.0,0.6099514]
[1745342933126,0.19200001,90989.0,90988.0,0.6099514]
[1745342933922,0.19300001,90989.0,90988.0,0.6139514]
[1745342934122,0.19400001,90989.0,90988.0,0.6179514]
[1745342935729,0.1390624,90989.0,90988.0,0.6179514]
[1745342936126,0.1390624,90989.0,90988.0,0.59158101]
[1745342936325,0.1390624,90989.0,90988.0,0.48167701]
[1745342939336,0.1390624,90989.0,90988.0,0.31597701]
[1745342939527,0.1390624,90989.0,90988.0,0.16147701]
[1745342940329,0.1390624,90989.0,90988.0,0.1878474]
[1745342940523,0.1390624,90989.0,90988.0,0.078]
[1745342940735,0.4989664,90989.0,90978.0,0.00016487]
[1745342941033,0.4744,90988.0,90978.0,0.03]
[1745342941222,0.4744,90988.0,90981.0,0.1098555]
[1745342941428,0.4744,90988.0,90982.0,0.1098538]
[1745342941630,0.4744,90988.0,90978.0,0.0549297]
[1745342941830,0.4744,90988.0,90978.0,0.0649296]
[1745342942033,0.4744,90988.0,90978.0,0.01]
[1745342942233,0.6664,90988.0,90983.0,0.1098529]
[1745342942432,0.5,90983.0,90982.0,0.1098546]
[1745342942631,0.5,90983.0,90974.0,0.00016487]
[1745342942824,0.3223,90982.0,90974.0,0.02016487]
[1745342943029,0.3608,90975.0,90974.0,0.02016487]
[1745342944037,0.72072,90975.0,90969.0,0.10987]
[1745342944233,0.72072,90975.0,90967.0,0.05988315]
[1745342944234,0.3608,90972.0,90967.0,0.00494685]
[1745342944435,0.4773,90971.0,90957.0,0.0549421]
[1745342944629,0.3608,90962.0,90961.0,0.2197598]
[1745342944828,0.3608,90962.0,90961.0,0.2397598]
[1745342945225,0.5528,90962.0,90961.0,0.2397598]
[1745342946331,0.192,90962.0,90961.0,0.2397598]
[1745342946930,0.193,90962.0,90961.0,0.2417598]
[1745342947130,0.693,90962.0,90961.0,0.2417598]
[1745342947738,0.694,90962.0,90961.0,0.2437598]
[1745342947928,0.694,90962.0,90961.0,0.1338798]
[1745342948129,1.0548,90962.0,90961.0,0.1338798]
[1745342952234,1.0548,90962.0,90961.0,0.0789399]
[1745342954935,1.0548,90962.0,90961.0,0.0779399]
[1745342955642,0.694,90962.0,90961.0,0.0779399]
[1745342955841,0.66067756,90962.0,90961.0,0.0769399]
[1745342956341,0.65967756,90962.0,90961.0,0.3997399]
[1745342956537,0.64533872,90962.0,90961.0,0.3997399]
[1745342956939,0.64433872,90962.0,90961.0,0.3987399]
[1745342957143,0.14533872,90962.0,90961.0,0.2323399]
[1745342957437,0.14533872,90962.0,90961.0,0.2353399]
[1745342958744,0.14533872,90962.0,90961.0,0.0799399]
[1745342958946,0.14533872,90962.0,90961.0,0.2390399]
[1745342959443,0.10813872,90962.0,90961.0,0.2390399]
[1745342959635,0.10813872,90962.0,90961.0,0.5998399]
[1745342960939,0.15546487,90971.0,90970.0,0.1098691]
[1745342961242,0.34746487,90971.0,90970.0,0.1398691]
[1745342961639,0.34746487,90971.0,90970.0,0.12612903]
[1745342961846,0.15916248,90971.0,90970.0,0.43442903]
[1745342962147,0.15916248,90971.0,90970.0,0.59782903]
[1745342962345,0.15916248,90971.0,90970.0,0.57145067]
[1745342962644,0.13429248,90971.0,90970.0,0.57245067]
[1745342962847,0.13429248,90971.0,90970.0,0.57345067]
[1745342963448,0.49509248,90971.0,90970.0,0.032]
[1745342964654,0.99509248,90971.0,90970.0,0.032]
[1745342964850,0.99509248,90971.0,90970.0,0.1418691]
[1745342965249,0.99509248,90971.0,90970.0,0.1408691]
[1745342965454,0.63729248,90971.0,90970.0,0.1408691]